[Event "Early-Titled-Tuesday-Blitz-September-26-2023"]
[Site "Chess.com"]
[Date "2023.09.26"]
[Round "1"]
[White "GeorgiosSouleidis"]
[Black "maurovargas01"]
[Result "1-0"]
[WhiteElo "2533"]
[BlackElo "1887"]
[TimeControl "180+1"]
[EndTime "8:07:08 PDT"]
[Termination "GeorgiosSouleidis won on time"]

1. e4 {[%clk 0:02:53.9]} 1... c6 {[%clk 0:02:15.9]} 2. Nc3 {[%clk 0:02:51.8]}
2... d5 {[%clk 0:02:15.6]} 3. Nf3 {[%clk 0:02:52.3]} 3... dxe4 {[%clk
0:02:14.9]} 4. Nxe4 {[%clk 0:02:53.2]} 4... Nf6 {[%clk 0:02:15.7]} 5. Qe2 {[%clk
0:02:51.1]} 5... Nxe4 {[%clk 0:02:08.9]} 6. Qxe4 {[%clk 0:02:52]} 6... Qd5
{[%clk 0:02:09.5]} 7. Qh4 {[%clk 0:02:49.2]} 7... Nd7 {[%clk 0:02:03.4]} 8. Bc4
{[%clk 0:02:35.1]} 8... Qf5 {[%clk 0:01:50.7]} 9. d3 {[%clk 0:02:10.3]} 9... h6
{[%clk 0:01:44.7]} 10. O-O {[%clk 0:02:04.6]} 10... g5 {[%clk 0:01:40.6]} 11.
Qd4 {[%clk 0:01:49.9]} 11... Nf6 {[%clk 0:01:30.2]} 12. Re1 {[%clk 0:01:38.3]}
12... Bg7 {[%clk 0:01:28]} 13. Qe3 {[%clk 0:01:20]} 13... e6 {[%clk 0:00:47.1]}
14. Nd4 {[%clk 0:01:17.8]} 14... Qg6 {[%clk 0:00:37.9]} 15. Bd2 {[%clk
0:00:57.4]} 15... O-O {[%clk 0:00:35.8]} 16. Bc3 {[%clk 0:00:50.7]} 16... Nd5
{[%clk 0:00:32.2]} 17. Bxd5 {[%clk 0:00:49.4]} 17... cxd5 {[%clk 0:00:23.9]} 18.
Nb5 {[%clk 0:00:23.5]} 18... a6 {[%clk 0:00:20.2]} 19. Bxg7 {[%clk 0:00:23]}
19... Qxg7 {[%clk 0:00:18]} 20. Nd4 {[%clk 0:00:22.1]} 20... b5 {[%clk
0:00:14.5]} 21. c3 {[%clk 0:00:21.2]} 21... Bb7 {[%clk 0:00:14.2]} 22. Nf3
{[%clk 0:00:20.8]} 22... Rad8 {[%clk 0:00:12.4]} 23. d4 {[%clk 0:00:21.1]} 23...
Rfe8 {[%clk 0:00:11.4]} 24. a4 {[%clk 0:00:21]} 24... bxa4 {[%clk 0:00:08.7]}
25. Rxa4 {[%clk 0:00:21.9]} 25... f6 {[%clk 0:00:08.8]} 26. Rb4 {[%clk
0:00:21.8]} 26... e5 {[%clk 0:00:05.1]} 27. dxe5 {[%clk 0:00:16]} 27... fxe5
{[%clk 0:00:03.9]} 28. Qb6 {[%clk 0:00:12.4]} 28... Ba8 {[%clk 0:00:01.7]} 29.
Qxa6 {[%clk 0:00:11.6]} 29... e4 {[%clk 0:00:01.7]} 30. Nd4 {[%clk 0:00:11.4]}
1-0

[Event "Early-Titled-Tuesday-Blitz-September-26-2023"]
[Site "Chess.com"]
[Date "2023.09.26"]
[Round "1"]
[White "victormago"]
[Black "Hrant_ChessMood"]
[Result "0-1"]
[WhiteElo "2504"]
[BlackElo "2912"]
[TimeControl "180+1"]
[EndTime "8:07:10 PDT"]
[Termination "Hrant_ChessMood won on time"]

1. d4 {[%clk 0:02:59]} 1... Nf6 {[%clk 0:02:13.1]} 2. c4 {[%clk 0:02:56.4]} 2...
e6 {[%clk 0:02:12.4]} 3. Nc3 {[%clk 0:02:54.5]} 3... Bb4 {[%clk 0:02:10.5]} 4.
Qc2 {[%clk 0:02:53.6]} 4... d6 {[%clk 0:02:08.2]} 5. Nf3 {[%clk 0:02:49.8]} 5...
Nc6 {[%clk 0:02:07.7]} 6. g3 {[%clk 0:02:47.1]} 6... e5 {[%clk 0:02:06.8]} 7. d5
{[%clk 0:02:32]} 7... Bxc3+ {[%clk 0:02:06.1]} 8. Qxc3 {[%clk 0:02:28.5]} 8...
Ne7 {[%clk 0:02:07]} 9. Bg2 {[%clk 0:02:26.9]} 9... a5 {[%clk 0:02:06]} 10. b3
{[%clk 0:02:24.1]} 10... Nd7 {[%clk 0:02:05.5]} 11. O-O {[%clk 0:02:22.8]} 11...
Nc5 {[%clk 0:02:04.6]} 12. Bb2 {[%clk 0:02:21.6]} 12... O-O {[%clk 0:02:02]} 13.
Rac1 {[%clk 0:02:14.2]} 13... Bg4 {[%clk 0:01:59.8]} 14. Rb1 {[%clk 0:02:15.1]}
14... Qd7 {[%clk 0:01:58.1]} 15. Ba3 {[%clk 0:01:52.9]} 15... b6 {[%clk
0:01:56.3]} 16. Rfe1 {[%clk 0:01:27.7]} 16... Ng6 {[%clk 0:01:40]} 17. Rbd1
{[%clk 0:01:14.1]} 17... h6 {[%clk 0:01:38.9]} 18. Bc1 {[%clk 0:01:12.1]} 18...
Rae8 {[%clk 0:01:32.1]} 19. a3 {[%clk 0:01:10.7]} 19... a4 {[%clk 0:01:29.8]}
20. b4 {[%clk 0:01:10.1]} 20... Nb3 {[%clk 0:01:30.5]} 21. Be3 {[%clk 0:01:05]}
21... f5 {[%clk 0:01:27]} 22. Bc1 {[%clk 0:00:57.3]} 22... f4 {[%clk 0:01:23.2]}
23. Nd2 {[%clk 0:00:39.9]} 23... Nd4 {[%clk 0:01:14.3]} 24. f3 {[%clk
0:00:39.8]} 24... Bh3 {[%clk 0:01:13]} 25. Ne4 {[%clk 0:00:39.3]} 25... Bf5
{[%clk 0:01:06.3]} 26. Rxd4 {[%clk 0:00:32.9]} 26... exd4 {[%clk 0:01:05]} 27.
Qxd4 {[%clk 0:00:33.8]} 27... Bxe4 {[%clk 0:01:03.9]} 28. fxe4 {[%clk
0:00:33.5]} 28... fxg3 {[%clk 0:01:04]} 29. hxg3 {[%clk 0:00:33.8]} 29... Qg4
{[%clk 0:01:01.2]} 30. Kh2 {[%clk 0:00:23.3]} 30... Ne5 {[%clk 0:01:00.9]} 31.
Bb2 {[%clk 0:00:20.3]} 31... Qh5+ {[%clk 0:00:57.8]} 32. Kg1 {[%clk 0:00:20]}
32... Qg5 {[%clk 0:00:58.7]} 33. Kh2 {[%clk 0:00:18.9]} 33... Rf2 {[%clk
0:00:55.1]} 34. Kg1 {[%clk 0:00:14.1]} 34... Ref8 {[%clk 0:00:53.4]} 35. Qc3
{[%clk 0:00:10.5]} 35... Qf6 {[%clk 0:00:44.6]} 36. Qc1 {[%clk 0:00:03.5]} 36...
h5 {[%clk 0:00:32.5]} 37. Qe3 {[%clk 0:00:02.5]} 37... Ng4 {[%clk 0:00:19]} 38.
Bxf6 {[%clk 0:00:01.5]} 38... Rxg2+ {[%clk 0:00:19]} 0-1

[Event "Early-Titled-Tuesday-Blitz-September-26-2023"]
[Site "Chess.com"]
[Date "2023.09.26"]
[Round "1"]
[White "Hongjin"]
[Black "GianmarcoVaR"]
[Result "1-0"]
[WhiteElo "2346"]
[BlackElo "2612"]
[TimeControl "180+1"]
[EndTime "8:07:10 PDT"]
[Termination "Hongjin won by checkmate"]

1. d4 {[%clk 0:03:00.9]} 1... g6 {[%clk 0:02:57]} 2. Nf3 {[%clk 0:02:57.2]} 2...
Bg7 {[%clk 0:02:57.9]} 3. g3 {[%clk 0:02:57.2]} 3... d6 {[%clk 0:02:58.4]} 4.
Bg2 {[%clk 0:02:57.8]} 4... Nc6 {[%clk 0:02:57.9]} 5. O-O {[%clk 0:02:58.4]}
5... e5 {[%clk 0:02:58.1]} 6. e3 {[%clk 0:02:57.8]} 6... Nge7 {[%clk 0:02:56.7]}
7. b3 {[%clk 0:02:57.5]} 7... O-O {[%clk 0:02:55.9]} 8. Bb2 {[%clk 0:02:56.8]}
8... Bg4 {[%clk 0:02:42.9]} 9. h3 {[%clk 0:02:55.5]} 9... Bd7 {[%clk 0:02:43.5]}
10. d5 {[%clk 0:02:54.8]} 10... Nb4 {[%clk 0:02:34.8]} 11. c4 {[%clk 0:02:45.6]}
11... e4 {[%clk 0:02:33.7]} 12. Nd4 {[%clk 0:02:45.2]} 12... f5 {[%clk
0:02:29.1]} 13. f3 {[%clk 0:02:37.7]} 13... exf3 {[%clk 0:02:20.2]} 14. Bxf3
{[%clk 0:02:32.3]} 14... c5 {[%clk 0:02:17.9]} 15. dxc6 {[%clk 0:02:26.4]} 15...
bxc6 {[%clk 0:02:18.4]} 16. a3 {[%clk 0:02:20.1]} 16... Na6 {[%clk 0:02:17.6]}
17. Nc3 {[%clk 0:02:19.9]} 17... Rb8 {[%clk 0:02:12.7]} 18. Qc2 {[%clk
0:02:18.5]} 18... g5 {[%clk 0:02:05.6]} 19. Rad1 {[%clk 0:02:09.4]} 19... Be5
{[%clk 0:01:50]} 20. Nce2 {[%clk 0:02:00.8]} 20... Nc5 {[%clk 0:01:44.9]} 21. b4
{[%clk 0:01:59.3]} 21... Ne4 {[%clk 0:01:45.1]} 22. Bxe4 {[%clk 0:01:42.4]}
22... fxe4 {[%clk 0:01:46]} 23. g4 {[%clk 0:01:39.9]} 23... Ng6 {[%clk
0:01:29.6]} 24. Qxe4 {[%clk 0:01:36]} 24... c5 {[%clk 0:01:27.2]} 25. Qd5+
{[%clk 0:00:34.8]} 25... Kh8 {[%clk 0:01:24.2]} 26. Ne6 {[%clk 0:00:30.4]} 26...
Bxe6 {[%clk 0:00:47]} 27. Bxe5+ {[%clk 0:00:28.5]} 27... Nxe5 {[%clk 0:00:47.1]}
28. Qxe6 {[%clk 0:00:26.6]} 28... Rxf1+ {[%clk 0:00:43.5]} 29. Rxf1 {[%clk
0:00:27.5]} 29... Qe8 {[%clk 0:00:34.4]} 30. Qxd6 {[%clk 0:00:24.8]} 30... Ng6
{[%clk 0:00:24.6]} 31. Rf3 {[%clk 0:00:22.7]} 31... cxb4 {[%clk 0:00:22.1]} 32.
axb4 {[%clk 0:00:22.5]} 32... Rd8 {[%clk 0:00:21.4]} 33. Qf6+ {[%clk 0:00:22.6]}
33... Kg8 {[%clk 0:00:22]} 34. Nd4 {[%clk 0:00:22.8]} 34... Rd7 {[%clk
0:00:17.9]} 35. Nf5 {[%clk 0:00:22.7]} 35... Qf8 {[%clk 0:00:14.2]} 36. Qe6+
{[%clk 0:00:20.3]} 36... Rf7 {[%clk 0:00:13.6]} 37. Nh6+ {[%clk 0:00:19.8]}
37... Qxh6 {[%clk 0:00:14.3]} 38. Qxf7+ {[%clk 0:00:20.1]} 38... Kh8 {[%clk
0:00:14.9]} 39. Qe8+ {[%clk 0:00:20.3]} 39... Kg7 {[%clk 0:00:15.1]} 40. Rf7#
{[%clk 0:00:20.2]} 1-0

[Event "Early-Titled-Tuesday-Blitz-September-26-2023"]
[Site "Chess.com"]
[Date "2023.09.26"]
[Round "1"]
[White "elegant285"]
[Black "skkeyan1309"]
[Result "0-1"]
[WhiteElo "2440"]
[BlackElo "2745"]
[TimeControl "180+1"]
[EndTime "8:07:12 PDT"]
[Termination "skkeyan1309 won by checkmate"]

1. d4 {[%clk 0:03:00.9]} 1... d5 {[%clk 0:02:59.6]} 2. Bf4 {[%clk 0:02:58.6]}
2... c5 {[%clk 0:02:59.2]} 3. e3 {[%clk 0:02:57.6]} 3... Nc6 {[%clk 0:02:59.3]}
4. Nf3 {[%clk 0:02:55.3]} 4... Nf6 {[%clk 0:02:58.8]} 5. Nbd2 {[%clk 0:02:54.7]}
5... Bg4 {[%clk 0:02:57.8]} 6. h3 {[%clk 0:02:53.1]} 6... Bxf3 {[%clk
0:02:55.2]} 7. Nxf3 {[%clk 0:02:53.2]} 7... e6 {[%clk 0:02:55.3]} 8. c3 {[%clk
0:02:50.8]} 8... Bd6 {[%clk 0:02:55]} 9. Bxd6 {[%clk 0:02:39]} 9... Qxd6 {[%clk
0:02:55.9]} 10. Bb5 {[%clk 0:02:39.3]} 10... O-O {[%clk 0:02:55.3]} 11. O-O
{[%clk 0:02:37.8]} 11... cxd4 {[%clk 0:02:53.3]} 12. exd4 {[%clk 0:02:36.2]}
12... Ne4 {[%clk 0:02:52.8]} 13. Re1 {[%clk 0:02:33]} 13... a6 {[%clk
0:02:33.8]} 14. Bd3 {[%clk 0:02:22.1]} 14... f5 {[%clk 0:02:30.8]} 15. Qe2
{[%clk 0:02:15.3]} 15... Rae8 {[%clk 0:02:28.8]} 16. Rad1 {[%clk 0:02:14.1]}
16... b5 {[%clk 0:02:14.9]} 17. a4 {[%clk 0:02:06.2]} 17... b4 {[%clk
0:02:10.7]} 18. Bxa6 {[%clk 0:01:59.1]} 18... bxc3 {[%clk 0:02:10.4]} 19. Bb5
{[%clk 0:01:56.1]} 19... Rb8 {[%clk 0:02:01.6]} 20. Rb1 {[%clk 0:01:24.7]} 20...
Na7 {[%clk 0:01:47.4]} 21. Qd3 {[%clk 0:01:21.5]} 21... Nxb5 {[%clk 0:01:45.6]}
22. axb5 {[%clk 0:01:22.4]} 22... Rfc8 {[%clk 0:01:42.9]} 23. bxc3 {[%clk
0:01:11.9]} 23... Rxc3 {[%clk 0:01:38]} 24. Qd1 {[%clk 0:01:08.4]} 24... Ra3
{[%clk 0:01:16.7]} 25. Qc2 {[%clk 0:00:48.3]} 25... Qf4 {[%clk 0:01:04.1]} 26.
Rb3 {[%clk 0:00:37.1]} 26... Rxb3 {[%clk 0:00:42.9]} 27. Qxb3 {[%clk 0:00:38]}
27... g5 {[%clk 0:00:36.6]} 28. Qb2 {[%clk 0:00:29.8]} 28... g4 {[%clk
0:00:35.8]} 29. hxg4 {[%clk 0:00:29.8]} 29... fxg4 {[%clk 0:00:36.2]} 30. Ne5
{[%clk 0:00:29.1]} 30... Rxb5 {[%clk 0:00:36.9]} 31. Qxb5 {[%clk 0:00:21.7]}
31... Qxf2+ {[%clk 0:00:36.7]} 32. Kh2 {[%clk 0:00:22.4]} 32... Qh4+ {[%clk
0:00:34.1]} 33. Kg1 {[%clk 0:00:22]} 33... Qxe1+ {[%clk 0:00:35]} 34. Kh2 {[%clk
0:00:22.5]} 34... g3+ {[%clk 0:00:23.1]} 35. Kh3 {[%clk 0:00:22.3]} 35... Qh1+
{[%clk 0:00:24]} 36. Kg4 {[%clk 0:00:21.7]} 36... h5+ {[%clk 0:00:24.9]} 37. Kf4
{[%clk 0:00:18.9]} 37... Qh4+ {[%clk 0:00:23.2]} 38. Ke3 {[%clk 0:00:16]} 38...
Qg5+ {[%clk 0:00:23.7]} 39. Ke2 {[%clk 0:00:15.9]} 39... Qd2+ {[%clk 0:00:23.5]}
40. Kf3 {[%clk 0:00:15.8]} 40... Qf2# {[%clk 0:00:24.2]} 0-1

[Event "Early-Titled-Tuesday-Blitz-September-26-2023"]
[Site "Chess.com"]
[Date "2023.09.26"]
[Round "1"]
[White "BigAl"]
[Black "Dewarfd"]
[Result "1-0"]
[WhiteElo "2552"]
[BlackElo "2118"]
[TimeControl "180+1"]
[EndTime "8:07:14 PDT"]
[Termination "BigAl won by resignation"]

1. Nf3 {[%clk 0:03:00.3]} 1... d5 {[%clk 0:03:00.2]} 2. g3 {[%clk 0:02:58]} 2...
c5 {[%clk 0:02:59]} 3. Bg2 {[%clk 0:02:58.9]} 3... Nc6 {[%clk 0:02:58.4]} 4. O-O
{[%clk 0:02:56.8]} 4... e6 {[%clk 0:02:58.4]} 5. d3 {[%clk 0:02:57.4]} 5... Nf6
{[%clk 0:02:58.2]} 6. Nbd2 {[%clk 0:02:57.6]} 6... Be7 {[%clk 0:02:51.9]} 7. e4
{[%clk 0:02:57.7]} 7... h6 {[%clk 0:02:50.7]} 8. Re1 {[%clk 0:02:57.4]} 8... O-O
{[%clk 0:02:49.3]} 9. e5 {[%clk 0:02:53.4]} 9... Nd7 {[%clk 0:02:49.3]} 10. Nf1
{[%clk 0:02:54.3]} 10... b5 {[%clk 0:02:48.8]} 11. h4 {[%clk 0:02:54.4]} 11...
a5 {[%clk 0:02:47.5]} 12. Bf4 {[%clk 0:02:54.9]} 12... a4 {[%clk 0:02:45.9]} 13.
N1h2 {[%clk 0:02:55.3]} 13... Bb7 {[%clk 0:02:42.9]} 14. a3 {[%clk 0:02:53.4]}
14... b4 {[%clk 0:02:41.5]} 15. Qd2 {[%clk 0:02:53.8]} 15... Qb6 {[%clk
0:02:28.9]} 16. Bxh6 {[%clk 0:02:42.2]} 16... gxh6 {[%clk 0:02:26.1]} 17. Qxh6
{[%clk 0:02:43.1]} 17... Rfc8 {[%clk 0:02:07.4]} 18. Ng4 {[%clk 0:02:18.8]}
18... Qd8 {[%clk 0:01:57.5]} 19. Ng5 {[%clk 0:02:02.1]} 19... Bxg5 {[%clk
0:01:55.1]} 20. hxg5 {[%clk 0:02:02.3]} 20... Qf8 {[%clk 0:01:50.4]} 21. Qh4
{[%clk 0:01:51.7]} 21... Qg7 {[%clk 0:01:50.4]} 22. Nf6+ {[%clk 0:01:40.3]}
22... Nxf6 {[%clk 0:01:46.6]} 23. exf6 {[%clk 0:01:24.1]} 23... Qh7 {[%clk
0:01:41.2]} 24. Qf4 {[%clk 0:01:21.8]} 24... Nd4 {[%clk 0:01:34.3]} 25. Rac1
{[%clk 0:01:07.3]} 25... bxa3 {[%clk 0:01:27.8]} 26. bxa3 {[%clk 0:01:06.8]}
26... Qg6 {[%clk 0:01:20.2]} 27. Re5 {[%clk 0:00:54.9]} 27... Rab8 {[%clk
0:00:59]} 28. c3 {[%clk 0:00:51.7]} 28... Nc6 {[%clk 0:00:55.5]} 29. Ree1 {[%clk
0:00:47.7]} 29... Ba6 {[%clk 0:00:55.3]} 30. c4 {[%clk 0:00:46.4]} 30... e5
{[%clk 0:00:46.5]} 31. Qg4 {[%clk 0:00:33.1]} 31... Nd4 {[%clk 0:00:45.1]} 32.
Bxd5 {[%clk 0:00:32.6]} 32... Bb7 {[%clk 0:00:42.7]} 33. Bxb7 {[%clk 0:00:30.3]}
33... Rd8 {[%clk 0:00:33.2]} 34. Be4 {[%clk 0:00:29.5]} 34... Qxg5 {[%clk
0:00:32.7]} 35. Qxg5+ {[%clk 0:00:29.5]} 35... Kf8 {[%clk 0:00:31.4]} 36. Qg7+
{[%clk 0:00:29]} 36... Ke8 {[%clk 0:00:31.6]} 37. Qg8+ {[%clk 0:00:25.3]} 37...
Kd7 {[%clk 0:00:30.8]} 38. Qxf7+ {[%clk 0:00:26.2]} 38... Kc8 {[%clk 0:00:30.2]}
39. Rb1 {[%clk 0:00:22.9]} 39... Rxb1 {[%clk 0:00:22.3]} 40. Rxb1 {[%clk
0:00:22.7]} 40... Rd7 {[%clk 0:00:19.1]} 41. Qe8+ {[%clk 0:00:21.6]} 41... Kc7
{[%clk 0:00:19.6]} 42. Rb7+ {[%clk 0:00:20.1]} 1-0

[Event "Early-Titled-Tuesday-Blitz-September-26-2023"]
[Site "Chess.com"]
[Date "2023.09.26"]
[Round "1"]
[White "WindWhistler11"]
[Black "quvnoq_muxlis"]
[Result "0-1"]
[WhiteElo "2476"]
[BlackElo "2821"]
[TimeControl "180+1"]
[EndTime "8:07:16 PDT"]
[Termination "quvnoq_muxlis won on time"]

1. Nf3 {[%clk 0:03:00.9]} 1... d5 {[%clk 0:02:59.6]} 2. c4 {[%clk 0:03:00.4]}
2... e6 {[%clk 0:02:54.6]} 3. b3 {[%clk 0:02:53.8]} 3... a5 {[%clk 0:02:54.1]}
4. Bb2 {[%clk 0:02:49.5]} 4... Nf6 {[%clk 0:02:53.9]} 5. g3 {[%clk 0:02:43.9]}
5... b6 {[%clk 0:02:48.5]} 6. Bg2 {[%clk 0:02:34.6]} 6... Bb7 {[%clk 0:02:48.5]}
7. O-O {[%clk 0:02:31.5]} 7... Be7 {[%clk 0:02:48.6]} 8. d3 {[%clk 0:02:29.4]}
8... O-O {[%clk 0:02:48.4]} 9. Na3 {[%clk 0:02:29.5]} 9... d4 {[%clk 0:02:13.1]}
10. e3 {[%clk 0:02:15.4]} 10... dxe3 {[%clk 0:01:54.3]} 11. fxe3 {[%clk
0:02:16.3]} 11... c5 {[%clk 0:01:54.7]} 12. Nb5 {[%clk 0:02:03.6]} 12... a4
{[%clk 0:01:53.6]} 13. Qe2 {[%clk 0:01:55.9]} 13... Nc6 {[%clk 0:01:36.9]} 14.
Rad1 {[%clk 0:01:44.3]} 14... Qb8 {[%clk 0:01:26.8]} 15. d4 {[%clk 0:01:44.1]}
15... Rd8 {[%clk 0:01:26.3]} 16. Kh1 {[%clk 0:01:30.8]} 16... axb3 {[%clk
0:01:17.6]} 17. axb3 {[%clk 0:01:30.8]} 17... Nb4 {[%clk 0:01:18.1]} 18. Nc3
{[%clk 0:01:11.7]} 18... Ne4 {[%clk 0:00:56.5]} 19. Ne5 {[%clk 0:00:33.7]} 19...
Nxc3 {[%clk 0:00:28.3]} 20. Bxc3 {[%clk 0:00:34.6]} 20... f6 {[%clk 0:00:22.9]}
21. Qg4 {[%clk 0:00:21.1]} 21... Bxg2+ {[%clk 0:00:19.7]} 22. Kxg2 {[%clk
0:00:20.3]} 22... Qb7+ {[%clk 0:00:19.9]} 23. d5 {[%clk 0:00:14.1]} 23... Rd6
{[%clk 0:00:05.9]} 24. Nf3 {[%clk 0:00:06.2]} 24... exd5 {[%clk 0:00:05.4]} 25.
Bxb4 {[%clk 0:00:06.9]} 25... cxb4 {[%clk 0:00:05.2]} 26. cxd5 {[%clk
0:00:06.3]} 26... Ra2+ {[%clk 0:00:05.7]} 27. Kg1 {[%clk 0:00:04.6]} 27... Ra5
{[%clk 0:00:04.4]} 28. Nh4 {[%clk 0:00:03.9]} 28... Raxd5 {[%clk 0:00:03.6]} 29.
Nf5 {[%clk 0:00:04.6]} 29... Bf8 {[%clk 0:00:02.1]} 30. Nh6+ {[%clk 0:00:04.3]}
30... Kh8 {[%clk 0:00:02.1]} 31. Nf7+ {[%clk 0:00:05]} 31... Qxf7 {[%clk
0:00:02.3]} 32. Rxd5 {[%clk 0:00:01.2]} 32... Rxd5 {[%clk 0:00:03.2]} 0-1

[Event "Early-Titled-Tuesday-Blitz-September-26-2023"]
[Site "Chess.com"]
[Date "2023.09.26"]
[Round "1"]
[White "cthake"]
[Black "a-z30"]
[Result "1/2-1/2"]
[WhiteElo "1874"]
[BlackElo "2524"]
[TimeControl "180+1"]
[EndTime "8:07:18 PDT"]
[Termination "Game drawn by repetition"]

1. e4 {[%clk 0:02:58.7]} 1... d6 {[%clk 0:02:59.4]} 2. d4 {[%clk 0:02:58.1]}
2... Nf6 {[%clk 0:02:59.7]} 3. Nc3 {[%clk 0:02:57.8]} 3... g6 {[%clk 0:02:59.3]}
4. Nf3 {[%clk 0:02:57.7]} 4... Bg7 {[%clk 0:02:59.4]} 5. Be2 {[%clk 0:02:57.8]}
5... O-O {[%clk 0:02:59.5]} 6. h3 {[%clk 0:02:57.9]} 6... Nc6 {[%clk 0:02:59]}
7. Be3 {[%clk 0:02:57.6]} 7... e5 {[%clk 0:02:58.8]} 8. d5 {[%clk 0:02:57.2]}
8... Ne7 {[%clk 0:02:58.2]} 9. O-O {[%clk 0:02:57.2]} 9... Ne8 {[%clk
0:02:31.2]} 10. g4 {[%clk 0:02:56.2]} 10... f5 {[%clk 0:02:24.1]} 11. gxf5
{[%clk 0:02:55.1]} 11... gxf5 {[%clk 0:02:23.8]} 12. Bg5 {[%clk 0:02:51.5]}
12... f4 {[%clk 0:02:20.9]} 13. Kh2 {[%clk 0:02:47.1]} 13... Qd7 {[%clk
0:02:19.9]} 14. Ng1 {[%clk 0:02:39.8]} 14... Nf6 {[%clk 0:02:05.5]} 15. Bxf6
{[%clk 0:02:37.3]} 15... Rxf6 {[%clk 0:02:04.5]} 16. Bg4 {[%clk 0:02:36.3]}
16... Qe8 {[%clk 0:02:04.1]} 17. f3 {[%clk 0:02:30.8]} 17... h5 {[%clk
0:02:00.2]} 18. Bxc8 {[%clk 0:02:29.4]} 18... Qxc8 {[%clk 0:01:50.8]} 19. Nge2
{[%clk 0:02:28]} 19... Ng6 {[%clk 0:01:32.4]} 20. Rg1 {[%clk 0:02:15.6]} 20...
Nh4 {[%clk 0:01:31.7]} 21. Qf1 {[%clk 0:02:13.9]} 21... Qe8 {[%clk 0:01:29.1]}
22. Rg5 {[%clk 0:02:08.4]} 22... Rg6 {[%clk 0:01:23]} 23. Rxg6 {[%clk
0:02:04.4]} 23... Qxg6 {[%clk 0:01:20]} 24. Qf2 {[%clk 0:02:04.3]} 24... Qf6
{[%clk 0:01:10.1]} 25. Rg1 {[%clk 0:02:03.4]} 25... Kh7 {[%clk 0:01:05.1]} 26.
Nb5 {[%clk 0:01:55.4]} 26... Ng6 {[%clk 0:00:46.7]} 27. c4 {[%clk 0:01:51]}
27... Qf7 {[%clk 0:00:43]} 28. Rg5 {[%clk 0:01:43.7]} 28... h4 {[%clk
0:00:31.3]} 29. Qg2 {[%clk 0:01:40.3]} 29... Bf6 {[%clk 0:00:28.9]} 30. Rg4
{[%clk 0:01:31.1]} 30... Rg8 {[%clk 0:00:24]} 31. a4 {[%clk 0:01:23.4]} 31... a6
{[%clk 0:00:23.7]} 32. Nbc3 {[%clk 0:01:18.3]} 32... Ne7 {[%clk 0:00:21.3]} 33.
b4 {[%clk 0:01:13.5]} 33... Rg6 {[%clk 0:00:20.3]} 34. a5 {[%clk 0:01:12.2]}
34... Ng8 {[%clk 0:00:18.9]} 35. Rxg6 {[%clk 0:01:08.3]} 35... Qxg6 {[%clk
0:00:18.5]} 36. Qg4 {[%clk 0:01:07.1]} 36... Qxg4 {[%clk 0:00:09.8]} 37. hxg4
{[%clk 0:01:07.4]} 37... Nh6 {[%clk 0:00:08.5]} 38. Ng1 {[%clk 0:01:06.3]} 38...
Nf7 {[%clk 0:00:08]} 39. Nh3 {[%clk 0:01:05.6]} 39... Kg7 {[%clk 0:00:06.5]} 40.
Na4 {[%clk 0:01:01.9]} 40... Kf8 {[%clk 0:00:06.7]} 41. Nc3 {[%clk 0:00:56.9]}
41... Ke8 {[%clk 0:00:07.1]} 42. Na4 {[%clk 0:00:56.3]} 42... Kd7 {[%clk
0:00:07.2]} 43. c5 {[%clk 0:00:52.9]} 43... Be7 {[%clk 0:00:04]} 44. Kg2 {[%clk
0:00:48.8]} 44... dxc5 {[%clk 0:00:02.9]} 45. bxc5 {[%clk 0:00:49.1]} 45... Bf6
{[%clk 0:00:02.4]} 46. Kf2 {[%clk 0:00:47.9]} 46... Be7 {[%clk 0:00:02.5]} 47.
Ke2 {[%clk 0:00:47.3]} 47... Bf6 {[%clk 0:00:02]} 48. Kd3 {[%clk 0:00:47.3]}
48... Be7 {[%clk 0:00:01.9]} 49. Ke2 {[%clk 0:00:43.8]} 49... Bf6 {[%clk
0:00:01.2]} 50. Kf2 {[%clk 0:00:43.7]} 50... Be7 {[%clk 0:00:01.6]} 51. Kg2
{[%clk 0:00:43.5]} 51... Bf8 {[%clk 0:00:02.1]} 52. Kf2 {[%clk 0:00:42.8]} 52...
Be7 {[%clk 0:00:02.6]} 1/2-1/2